fUSD/lending_fUSD_20240617
["ID","MTS","AMOUNT","RATE_DAILY","PERIOD"]
[329770468,1718658651276,-500.0,0.00022191,3]
[329770469,1718658651285,-500.0,0.00022191,3]
[329770470,1718658651295,-814.14,0.00022191,3]
[329770471,1718658651305,-500.0,0.00022191,3]
[329770472,1718658651314,-674.03,0.00022191,3]
[329770473,1718658651324,-500.0,0.00022191,3]
[329770474,1718658651335,-542.23,0.00022191,3]
[329770475,1718658651344,-500.0,0.00022191,3]
[329770476,1718658651354,-500.0,0.00022191,3]
[329770477,1718658651370,-500.0,0.00022191,3]
[329770478,1718658651384,-500.0,0.00022191,3]
[329770479,1718658651394,-1256.53,0.00022191,3]
[329770480,1718658651404,-500.0,0.00022191,3]
[329770481,1718658651414,-500.0,0.00022191,3]
[329770482,1718658651425,-500.0,0.00022191,3]
[329770483,1718658651435,-500.0,0.00022191,3]
[329770484,1718658651444,-614.54,0.00022191,3]
[329770485,1718658651454,-918.37,0.00022191,3]
[329770486,1718658651464,-1029.04,0.00022191,3]
[329770487,1718658651474,-500.0,0.00022191,3]
[329770488,1718658651484,-500.0,0.00022191,3]
[329770489,1718658651494,-657.24,0.00022191,3]
[329770490,1718658651504,-1461.4,0.00022191,3]
[329770491,1718658651514,-500.0,0.00022191,3]
[329770492,1718658651524,-500.0,0.00022191,3]
[329770493,1718658651534,-866.71,0.00022191,3]
[329770494,1718658651543,-500.0,0.00022191,3]
[329770495,1718658651553,-500.0,0.00022191,3]
[329770496,1718658651563,-1146.58,0.00022191,3]
[329770497,1718658651572,-500.0,0.00022191,3]
[329770498,1718658651583,-500.0,0.00022191,3]
[329770499,1718658651593,-500.0,0.00022191,3]
[329770500,1718658651602,-500.0,0.00022191,3]
[329770501,1718658651611,-500.0,0.00022191,3]
[329770502,1718658651624,-697.21,0.00022191,3]
[329770503,1718658651635,-723.9,0.00022191,3]
[329770504,1718658651645,-500.0,0.00022191,3]
[329770505,1718658651656,-500.0,0.00022191,3]
[329770506,1718658651666,-870.13,0.00022191,3]
[329770507,1718658651676,-500.0,0.00022191,3]
[329770508,1718658651686,-500.0,0.00022191,3]
[329770509,1718658651696,-801.85,0.00022191,3]
[329770510,1718658651706,-500.0,0.00022191,3]
[329770511,1718658651716,-500.0,0.00022191,3]
[329770512,1718658651726,-590.2,0.00022191,3]
[329770513,1718658651736,-500.0,0.00022191,3]
[329770514,1718658651746,-188.92483283,0.00022191,3]
[329770515,1718658651756,-500.0,0.00022191,3]
[329770516,1718658651766,-500.0,0.00022191,3]
[329770517,1718658651776,-500.0,0.00022191,3]
[329770518,1718658651785,-555.66,0.00022191,3]
[329770519,1718658651795,-500.0,0.00022191,3]
[329770520,1718658651804,-500.0,0.00022191,3]
[329770521,1718658651814,-500.0,0.00022191,3]
[329770522,1718658651824,-500.0,0.00022191,3]
[329770523,1718658651834,-472.31123552,0.00022191,3]
[329770524,1718658651843,-500.0,0.00022191,3]
[329770525,1718658651853,-500.0,0.00022191,3]
[329770526,1718658651864,-534.67,0.00022191,3]
[329770527,1718658651874,-500.0,0.00022191,3]
[329770528,1718658651884,-1268.46,0.00022191,3]
[329770529,1718658651894,-981.03,0.00022191,3]
[329770530,1718658651903,-732.1,0.00022191,3]
[329770531,1718658651913,-500.0,0.00022191,3]
[329770532,1718658651923,-500.0,0.00022191,3]
[329770533,1718658651932,-500.0,0.00022191,3]
[329770534,1718658651942,-500.0,0.00022191,3]
[329770535,1718658651952,-500.0,0.00022191,3]
[329770536,1718658651961,-500.0,0.00022191,3]
[329770537,1718658651971,-2080.43,0.00022191,3]
[329770538,1718658651980,-500.0,0.00022191,3]
[329770539,1718658651989,-687.6,0.00022191,3]
[329770540,1718658651999,-926.34,0.00022191,3]
[329770541,1718658652008,-620.81,0.00022191,3]
[329770542,1718658652018,-526.99,0.00022191,3]
[329770543,1718658652028,-500.0,0.00022191,3]
[329770544,1718658652037,-798.18,0.00022191,3]
[329770545,1718658652046,-500.0,0.00022191,3]
[329770546,1718658652055,-654.82,0.00022191,3]
[329770547,1718658652065,-500.0,0.00022191,3]
[329770548,1718658652075,-500.0,0.00022191,3]
[329770549,1718658652086,-500.0,0.00022191,3]
[329770550,1718658652095,-777.86,0.00022191,3]
[329770551,1718658652106,-500.0,0.00022191,3]
[329770552,1718658652120,-500.0,0.00022191,3]
[329770553,1718658652129,-500.0,0.00022191,3]
[329770554,1718658652138,-500.0,0.00022191,3]
[329770555,1718658652146,-500.0,0.00022191,3]
[329770556,1718658652155,-500.0,0.00022191,3]
[329770557,1718658652165,-854.68,0.00022191,3]
[329770558,1718658652174,-1187.29,0.00022191,3]
[329770559,1718658652186,-500.0,0.00022191,3]
[329770560,1718658652195,-1134.28,0.00022191,3]
[329770561,1718658652205,-500.0,0.00022191,3]
[329770562,1718658652215,-500.0,0.00022191,3]
[329770563,1718658652226,-500.0,0.00022191,3]
[329770564,1718658652235,-500.0,0.00022191,3]
[329770565,1718658652244,-500.0,0.00022191,3]
[329770566,1718658652254,-1766.77,0.00022191,3]
[329770567,1718658652263,-500.0,0.00022191,3]
[329770568,1718658652275,-500.0,0.00022191,3]
[329770569,1718658652285,-500.0,0.00022191,3]
[329770570,1718658652294,-1438.05,0.00022191,3]
[329770571,1718658652304,-712.36,0.00022191,3]
[329770572,1718658652314,-682.09,0.00022191,3]
[329770573,1718658652323,-500.0,0.00022191,3]
[329770574,1718658652333,-561.2,0.00022191,3]
[329770575,1718658652342,-500.0,0.00022191,3]
[329770576,1718658652352,-500.0,0.00022191,3]
[329770577,1718658652361,-557.11815093,0.00022191,3]
[329770578,1718658652373,-714.25,0.00022191,3]
[329770579,1718658652382,-500.0,0.00022191,3]
[329770580,1718658652392,-957.66,0.00022191,3]
[329770581,1718658652402,-500.0,0.00022191,3]
[329770582,1718658652413,-502.51,0.00022191,3]
[329770583,1718658652423,-1477.59,0.00022191,3]
[329770584,1718658652432,-567.94,0.00022191,3]
[329770585,1718658652442,-500.0,0.00022191,3]
[329770586,1718658652452,-949.7,0.00022191,3]
[329770587,1718658652461,-1001.55,0.00022191,3]
[329770588,1718658652471,-500.0,0.00022191,3]
[329770589,1718658652480,-500.0,0.00022191,3]
[329770590,1718658652490,-151.0,0.00022191,7]
[329770591,1718658652499,-500.0,0.00022191,3]
[329770592,1718658652508,-151.0,0.00022191,7]
[329770593,1718658652518,-500.0,0.00022191,3]
[329770594,1718658652527,-812.68,0.00022191,3]
[329770595,1718658652536,-1049.12,0.00022191,3]
[329770596,1718658652545,-991.81,0.00022191,3]
[329770597,1718658652554,-500.0,0.00022191,3]
[329770598,1718658652564,-559.04578495,0.00022191,3]
[329770599,1718658652573,-889.08,0.00022191,3]
[329770600,1718658652582,-500.0,0.00022191,3]
[329770601,1718658652591,-1276.23,0.00022191,3]
[329770602,1718658652600,-500.0,0.00022191,3]
[329770603,1718658652610,-500.0,0.00022191,3]
[329770604,1718658652623,-500.0,0.00022191,3]
[329770605,1718658652632,-938.84,0.00022191,3]
[329770606,1718658652641,-500.0,0.00022191,3]
[329770607,1718658652651,-881.63,0.00022191,3]
[329770608,1718658652659,-500.0,0.00022191,3]
[329770609,1718658652669,-1389.37,0.00022191,3]
[329770610,1718658652679,-500.0,0.00022191,3]
[329770611,1718658652689,-500.0,0.00022191,3]
[329770612,1718658652700,-734.56,0.00022191,3]
[329770613,1718658652710,-500.0,0.00022191,3]
[329770614,1718658652720,-533.65,0.00022191,3]
[329770615,1718658652730,-500.0,0.00022191,3]
[329770616,1718658652740,-400.46562979,0.00022191,3]
[329770617,1718658652749,-747.83,0.00022191,3]
[329770618,1718658652758,-686.4,0.00022191,3]
[329770619,1718658652768,-500.0,0.00022191,3]
[329770620,1718658652777,-250.0,0.00022191,3]
[329770621,1718658652787,-936.86,0.00022191,3]
[329770622,1718658652796,-500.0,0.00022191,3]
[329770623,1718658652806,-1758.39,0.00022191,3]
[329770624,1718658652815,-615.36,0.00022191,3]
[329770625,1718658652825,-941.25,0.00022191,3]
[329770626,1718658652834,-500.0,0.00022191,3]
[329770627,1718658652844,-500.0,0.00022191,3]
[329770628,1718658652854,-500.0,0.00022191,3]
[329770629,1718658652867,-500.0,0.00022191,3]
[329770630,1718658652877,-500.0,0.00022191,3]
[329770631,1718658652886,-667.54,0.00022191,3]
[329770632,1718658652895,-1184.61,0.00022191,3]
[329770633,1718658652905,-500.0,0.00022191,3]
[329770634,1718658652914,-593.30116935,0.00022191,3]
[329770635,1718658652924,-500.0,0.00022191,3]
[329770636,1718658652934,-1115.03,0.00022191,3]
[329770637,1718658652943,-1055.93,0.00022191,3]
[329770638,1718658652952,-612.29,0.00022191,3]
[329770639,1718658652962,-599.02,0.00022191,3]
[329770640,1718658652971,-847.06,0.00022191,3]
[329770641,1718658652981,-239.71640917,0.00022191,3]
[329770642,1718658652990,-500.0,0.00022191,3]
[329770643,1718658653000,-500.0,0.00022191,3]
[329770644,1718658653009,-500.0,0.00022191,3]
[329770645,1718658653019,-500.0,0.00022191,3]
[329770646,1718658653028,-937.37,0.00022191,3]
[329770647,1718658653038,-614.4108468,0.00022191,3]
[329770648,1718658653048,-500.0,0.00022191,3]
[329770649,1718658653058,-500.0,0.00022191,3]
[329770650,1718658653068,-502.33,0.00022191,3]
[329770651,1718658653078,-1578.11,0.00022191,3]
[329770652,1718658653087,-500.0,0.00022191,3]
[329770653,1718658653097,-1447.99,0.00022191,3]
[329770654,1718658653107,-1806.23,0.00022191,3]
[329770655,1718658653285,-500.0,0.00022191,3]
[329770656,1718658653316,-609.48,0.00022191,3]
[329770657,1718658653326,-500.0,0.00022191,3]
[329770658,1718658653335,-553.5,0.00022191,3]
[329770659,1718658653345,-1032.64,0.00022191,3]
[329770660,1718658653355,-500.0,0.00022191,3]
[329770661,1718658653368,-500.0,0.00022191,3]
[329770662,1718658653378,-500.0,0.00022191,3]
[329770663,1718658653387,-500.0,0.00022191,3]
[329770664,1718658653396,-500.0,0.00022191,3]
[329770665,1718658653406,-565.19,0.00022191,3]
[329770666,1718658653414,-319.99,0.00022191,3]
[329770667,1718658653424,-500.0,0.00022191,3]
[329770668,1718658653433,-500.0,0.00022191,3]
[329770669,1718658653443,-500.0,0.00022191,3]
[329770670,1718658653452,-1631.52,0.00022191,3]
[329770671,1718658653462,-500.0,0.00022191,3]
[329770672,1718658653471,-1283.86,0.00022191,3]
[329770673,1718658653480,-500.0,0.00022191,3]
[329770674,1718658653493,-500.0,0.00022191,3]
[329770675,1718658653507,-500.0,0.00022191,3]
[329770676,1718658653533,-500.0,0.00022191,3]
[329770677,1718658653555,-500.0,0.00022191,3]
[329770678,1718658653576,-574.26,0.00022191,3]
[329770679,1718658653585,-500.0,0.00022191,3]
[329770680,1718658653595,-1450.99,0.00022191,3]
[329770681,1718658653604,-557.8,0.00022191,3]
[329770682,1718658653616,-500.0,0.00022191,3]
[329770683,1718658653625,-500.0,0.00022191,3]
[329770684,1718658653634,-286.10885111,0.00022191,3]
[329770685,1718658653644,-742.47,0.00022191,3]
[329770686,1718658653653,-736.72,0.00022191,3]
[329770687,1718658653662,-500.0,0.00022191,3]
[329770688,1718658653672,-780.38,0.00022191,3]
[329770689,1718658653681,-543.21,0.00022191,3]
[329770690,1718658653690,-119.37228265,0.00022191,3]
[329770691,1718658653719,-380.62771735,0.00022191,3]
[329770692,1718658653727,-260.11954985,0.00022191,3]
[329770693,1718658653739,-275.919,0.00022191,3]
[329770695,1718658691108,-5000000.0,0.00023,120]
[329770696,1718658702030,-5000000.0,0.00023,120]
[329770697,1718658912230,-5000000.0,0.00023,120]
[329770698,1718658913394,441.45626882,0.00021816,60]
[329770699,1718658948221,-1000.0,0.00029929,60]
[329770700,1718658948246,-1000.0,0.00029929,60]
[329770701,1718658948273,-1000.0,0.00029929,120]
[329770702,1718658948302,-1000.0,0.00029929,60]
[329770703,1718658948330,-1000.0,0.00029929,60]
[329770704,1718658948355,-1000.0,0.00029929,120]
[329770705,1718658948380,-1000.0,0.00029929,60]
[329770706,1718658948405,-1000.0,0.00029929,60]
[329770707,1718658948431,-1000.0,0.00029929,60]
[329770708,1718658948455,-1000.0,0.00029929,60]
[329770709,1718658948479,-1000.0,0.00029929,60]
[329770710,1718658948506,-886.26056794,0.00029929,60]
[329770711,1718658948530,-1000.0,0.00029929,60]
[329770712,1718658948553,-1000.0,0.00029929,120]
[329770713,1718658948577,-1000.0,0.00029929,60]
[329770714,1718658948598,-1000.0,0.00029929,60]
[329770715,1718658948620,-1000.0,0.00029929,60]
[329770716,1718658948643,-1000.0,0.00029929,120]
[329770717,1718658948666,-1000.0,0.00029929,60]
[329770718,1718658948689,-1000.0,0.00029929,60]
[329770719,1718658948713,-1000.0,0.00029929,60]
[329770720,1718658948736,-1000.0,0.00029929,120]
[329770721,1718658948759,-1000.0,0.00029929,60]
[329770722,1718658948782,-1000.0,0.00029929,60]
[329770723,1718658948804,-1039.46,0.00029929,60]
[329770724,1718658948828,-241.40157012,0.00029929,90]
[329770725,1718658948851,-999.999994,0.00029929,120]
[329770726,1718658948875,-525.84275027,0.00029929,60]
[329770727,1718658948898,-1082.93294639,0.00029929,120]
[329770728,1718658948924,-457.84657021,0.00029929,60]
[329770729,1718658948947,-999.76787228,0.00029929,120]
[329770730,1718658948969,-1024.76167199,0.00029929,120]
[329770731,1718658948992,-321.98079346,0.00029929,120]
[329770732,1718658949015,-626.25430837,0.00029929,120]
[329770733,1718658949037,-1226.29251296,0.00029929,60]
[329770734,1718658949059,-338.39129645,0.00029929,120]
[329770735,1718658949083,-940.60014728,0.00029929,120]
[329770736,1718658949107,-508.88173292,0.00029929,120]
[329770737,1718658949130,-809.06993189,0.00029929,120]
[329770738,1718658949152,-162.38168707,0.00029929,60]
[329770739,1718658949178,-309.29078588,0.00029929,120]
[329770740,1718658949201,-581.3328708,0.00029929,120]
[329770741,1718658949225,-1319.71493879,0.00029929,120]
[329770742,1718658949249,-370.4005716,0.00029929,120]
[329770743,1718658949277,-174.27819698,0.00029929,120]
[329770744,1718658949301,-187.98106916,0.00029929,120]
[329770745,1718658949327,-567.7310409,0.00029929,120]
[329770746,1718658949351,-313.76220199,0.00029929,120]
[329770747,1718658949377,-739.16440892,0.00029929,120]
[329770748,1718658949401,-459.473404,0.00029929,120]
[329770749,1718658949426,-943.80128278,0.00029929,120]
[329770750,1718658949450,-1505.74969749,0.00029929,120]
[329770751,1718658949474,-1272.9183263,0.00029929,120]
[329770752,1718658949498,-305.12621704,0.00029929,120]
[329770753,1718658949522,-2020.19865261,0.00029929,120]
[329770754,1718658949779,-1582.66130909,0.00029929,120]
[329770755,1718658949807,-523.78936913,0.00029929,120]
[329770756,1718658949832,-655.85433383,0.00029929,120]
[329770757,1718658949857,-286.87913549,0.00029929,120]
[329770758,1718658949881,-507.07089733,0.00029929,120]
[329770759,1718658949905,-938.26693155,0.00029929,120]
[329770760,1718658949929,-178.0494261,0.00029929,120]
[329770761,1718658949952,-207.24115754,0.00029929,120]
[329770762,1718658949975,-268.4525759,0.00029929,120]
[329770763,1718658949997,-1056.0165159,0.00029929,120]
[329770764,1718658950020,-905.99760078,0.00029929,120]
[329770765,1718658969120,-5000000.0,0.00023,120]
[329770766,1718658973077,-5000000.0,0.00023,120]
[329770767,1718658976473,-947919.31294496,0.00023,120]
[329770772,1718659272705,175.0,0.00021589,30]
[329770773,1718659272750,358.5,0.00021589,30]
[329770790,1718659831906,-511.0,0.00018,2]
[329770792,1718659831917,-162.93,0.00018636,2]
[329770793,1718659832060,-699.11912323,0.00018636,2]
[329770794,1718659832070,-303.98,0.00018736,2]
[329770795,1718659832079,-54.20087677,0.00019371,2]
[329770796,1718659832092,-245.79912323,0.00019371,2]
[329770797,1718659832101,-259.63185053,0.00019726,2]
[329770798,1718659832113,-8698.47557002,0.00019726,2]
[329770799,1718659832125,-2505.21257945,0.00019726,2]
[329770800,1718659832134,-499.99,0.00019726,2]
[329770801,1718659832144,-6634.24191482,0.0002,3]
[329770802,1718659832155,-1050.23533077,0.0002,3]
[329770803,1718659832206,-315.52275441,0.0002,3]
[329770804,1718659832215,-111.97724559,0.000201,2]
[329770805,1718659832228,-114.85788975,0.000201,2]
[329770806,1718659832237,-211.17,0.00020218,2]
[329770807,1718659832246,-120.14235237,0.00020263,2]
[329770808,1718659832258,-129.85764763,0.00020263,2]
[329770809,1718659832267,-463.38,0.00020336,2]
[329770810,1718659832276,-200.0,0.00020377,2]
[329770811,1718659832285,-302.42739072,0.00020589,2]
[329770817,1718659837870,-377.71260928,0.00020589,2]
[329770818,1718659837880,-432.0,0.00020643,2]
[329770819,1718659837890,-167.19,0.00020901,2]
[329770820,1718659837900,-303.98,0.00021,2]
[329770821,1718659837910,-200.0,0.000214,7]
[329770822,1718659837920,-200.0,0.00021407,2]
[329770823,1718659837930,-500.0,0.000215,7]
[329770824,1718659837939,-800.0,0.000216,7]
[329770825,1718659837949,-1000.0,0.00021617,2]
[329770826,1718659837959,-2500.0,0.00021617,2]
[329770827,1718659837969,-1100.0,0.000217,7]
[329770828,1718659837980,-3503.18251534,0.00021717,2]
[329770829,1718659839154,-5635.24233459,0.00021717,2]
[329770830,1718659839168,-4886.7500001,0.00021717,2]
[329770837,1718659840732,-918.99432185,0.00021717,2]
[329770840,1718659840744,-3327.15,0.00021717,2]
[329770847,1718659840909,-150558.47713,0.00021717,2]
[329770848,1718659840922,-940.8297732,0.00021717,2]
[329771288,1718659850479,-33221.34242492,0.00021717,2]
[329771289,1718659850488,-323.76725808,0.00021717,2]
[329771290,1718659850498,-262.93580274,0.00021717,2]
[329771291,1718659850508,-1300.0,0.000218,7]
[329771292,1718659850517,-10000.0,0.00021817,2]
[329771293,1718659850526,-105037.0696,0.00021817,2]
[329771294,1718659850536,-1000.0,0.00021817,2]
[329771295,1718659850546,-100000.0,0.00021817,2]
[329771296,1718659850556,-500.0,0.00021817,2]
[329771297,1718659850569,-25770.341,0.00021817,2]
[329771298,1718659850578,-1389.9544,0.00021817,2]
[329771299,1718659850588,-441.5783,0.00021817,2]
[329771300,1718659850597,-7500.0,0.00021817,2]
[329771301,1718659850611,-177.27972599,0.00021817,2]
[329771302,1718659850621,-5286.81484122,0.00021817,2]
[329771303,1718659850631,-200.0,0.000219,7]
[329771304,1718659850641,-150000.0,0.00021917,2]
[329771305,1718659850652,-150000.0,0.00021917,2]
[329771306,1718659850662,-150000.0,0.00021917,2]
[329771307,1718659850671,-150000.0,0.00021917,2]
[329771308,1718659850680,-150000.0,0.00021917,2]
[329771309,1718659850690,-150000.0,0.00021917,2]
[329771310,1718659850700,-150000.0,0.00021917,2]
[329771311,1718659850709,-150000.0,0.00021917,2]
[329771312,1718659850718,-106228.98510907,0.00021917,2]
[329771313,1718659850727,-1770.34377674,0.00021917,2]
[329771314,1718659850737,-500.0,0.00021917,2]
[329771315,1718659850747,-500.0,0.00021917,2]
[329771316,1718659850756,-500.0,0.00021917,2]
[329771317,1718659850766,-500.0,0.00021917,2]
[329771318,1718659850776,-500.0,0.00021917,2]
[329771319,1718659850785,-500.0,0.00021917,2]
[329771320,1718659850795,-500.0,0.00021917,2]
[329771321,1718659850804,-500.0,0.00021917,2]
[329771322,1718659850813,-500.0,0.00021917,2]
[329771323,1718659850823,-500.0,0.00021917,2]
[329771324,1718659850832,-500.0,0.00021917,2]
[329771325,1718659850843,-500.0,0.00021917,2]
[329771326,1718659850852,-500.0,0.00021917,2]
[329771327,1718659850862,-602.47,0.00021917,2]
[329771328,1718659850872,-500.0,0.00021917,2]
[329771329,1718659850881,-500.0,0.00021917,2]
[329771330,1718659850891,-517.47,0.00021917,2]
[329771331,1718659850900,-500.0,0.00021917,2]
[329771332,1718659850910,-500.0,0.00021917,2]
[329771333,1718659850919,-500.0,0.00021917,2]
[329771334,1718659850929,-500.0,0.00021917,2]
[329771335,1718659850939,-168.29,0.00021917,2]
[329771336,1718659850948,-500.0,0.00021917,2]
[329771337,1718659850958,-500.0,0.00021917,2]
[329771338,1718659850967,-500.0,0.00021917,2]
[329771339,1718659850976,-500.0,0.00021917,2]
[329771340,1718659850986,-500.0,0.00021917,2]
[329771341,1718659850997,-500.0,0.00021917,2]
[329771342,1718659851007,-500.0,0.00021917,2]
[329771343,1718659851016,-500.0,0.00021917,2]
[329771344,1718659851026,-500.0,0.00021917,2]
[329771345,1718659851035,-569.08,0.00021917,2]
[329771346,1718659851044,-500.0,0.00021917,2]
[329771347,1718659851053,-500.0,0.00021917,2]
[329771348,1718659851062,-500.0,0.00021917,2]
[329771349,1718659851072,-500.0,0.00021917,2]
[329771350,1718659851081,-500.0,0.00021917,2]
[329771351,1718659851090,-500.0,0.00021917,2]
[329771352,1718659851099,-500.0,0.00021917,2]
[329771353,1718659851109,-500.0,0.00021917,2]
[329771354,1718659851119,-500.0,0.00021917,2]
[329771355,1718659851128,-500.0,0.00021917,2]
[329771356,1718659851138,-500.0,0.00021917,2]
[329771357,1718659851147,-500.0,0.00021917,2]
[329771358,1718659851156,-500.0,0.00021917,2]
[329771359,1718659851165,-500.0,0.00021917,2]
[329771360,1718659851175,-500.0,0.00021917,2]
[329771361,1718659851184,-500.0,0.00021917,2]
[329771362,1718659851193,-500.0,0.00021917,2]
[329771363,1718659851202,-500.0,0.00021917,2]
[329771364,1718659851211,-1039.76,0.00021917,2]
[329771365,1718659851220,-870.56,0.00021917,2]
[329771366,1718659851230,-500.0,0.00021917,2]
[329771367,1718659851239,-500.0,0.00021917,2]
[329771368,1718659851249,-500.0,0.00021917,2]
[329771369,1718659851258,-500.0,0.00021917,2]
[329771370,1718659851267,-270.09055359,0.00021917,2]
[329771371,1718659851277,-500.0,0.00021917,2]
[329771372,1718659851288,-500.0,0.00021917,2]
[329771373,1718659851297,-500.0,0.00021917,2]
[329771374,1718659851308,-500.0,0.00021917,2]
[329771375,1718659851318,-500.0,0.00021917,2]
[329771376,1718659851327,-500.0,0.00021917,2]
[329771377,1718659851337,-500.0,0.00021917,2]
[329771378,1718659851347,-599.58522901,0.00021917,2]
[329771379,1718659851356,-500.0,0.00021917,2]
[329771380,1718659851367,-500.0,0.00021917,2]
[329771381,1718659851376,-500.0,0.00021917,2]
[329771382,1718659851389,-561.27,0.00021917,2]
[329771383,1718659851398,-500.0,0.00021917,2]
[329771384,1718659851407,-500.0,0.00021917,2]
[329771385,1718659851417,-500.0,0.00021917,2]
[329771386,1718659851426,-500.0,0.00021917,2]
[329771387,1718659851436,-500.0,0.00021917,2]
[329771388,1718659851445,-500.0,0.00021917,2]
[329771389,1718659851454,-500.0,0.00021917,2]
[329771390,1718659851465,-500.0,0.00021917,2]
[329771391,1718659851474,-500.0,0.00021917,2]
[329771392,1718659851570,-568.62332223,0.00021917,2]
[329771393,1718659851583,-500.0,0.00021917,2]
[329771394,1718659851592,-500.0,0.00021917,2]
[329771395,1718659851601,-500.0,0.00021917,2]
[329771396,1718659851611,-500.0,0.00021917,2]
[329771397,1718659851620,-500.0,0.00021917,2]
[329771398,1718659851629,-500.0,0.00021917,2]
[329771399,1718659851639,-558.69,0.00021917,2]
[329771400,1718659851650,-500.0,0.00021917,2]
[329771401,1718659851660,-654.73,0.00021917,2]
[329771402,1718659851669,-579.88,0.00021917,2]
[329771403,1718659851678,-553.07,0.00021917,2]
[329771404,1718659851687,-500.0,0.00021917,2]
[329771405,1718659851696,-500.0,0.00021917,2]
[329771406,1718659851706,-500.0,0.00021917,2]
[329771407,1718659851715,-500.0,0.00021917,2]
[329771408,1718659851724,-507.9,0.00021917,2]
[329771409,1718659851734,-500.0,0.00021917,2]
[329771410,1718659851743,-500.0,0.00021917,2]
[329771411,1718659851753,-500.0,0.00021917,2]
[329771412,1718659851762,-814.99,0.00021917,2]
[329771413,1718659851772,-845.5,0.00021917,2]
[329771414,1718659851781,-960.7,0.00021917,2]
[329771415,1718659851791,-500.0,0.00021917,2]
[329771416,1718659851800,-1354.45,0.00021917,2]
[329771417,1718659851809,-500.0,0.00021917,2]
[329771418,1718659851818,-500.0,0.00021917,2]
[329771419,1718659851827,-500.0,0.00021917,2]
[329771420,1718659851837,-673.35,0.00021917,2]
[329771421,1718659851846,-511.31,0.00021917,2]
[329771422,1718659851855,-500.0,0.00021917,2]
[329771423,1718659851865,-500.0,0.00021917,2]
[329771424,1718659851874,-1169.87,0.00021917,2]
[329771425,1718659851883,-500.0,0.00021917,2]
[329771426,1718659851893,-675.91,0.00021917,2]
[329771427,1718659851902,-568.12091656,0.00021917,2]
[329771428,1718659851911,-545.87,0.00021917,2]
[329771429,1718659851920,-1143.5,0.00021917,2]
[329771430,1718659851929,-530.66,0.00021917,2]
[329771431,1718659851938,-687.4,0.00021917,2]
[329771432,1718659851947,-500.0,0.00021917,2]
[329771433,1718659851957,-500.0,0.00021917,2]
[329771434,1718659851966,-500.0,0.00021917,2]
[329771435,1718659851975,-500.0,0.00021917,2]
[329771436,1718659851984,-500.0,0.00021917,2]
[329771437,1718659851993,-1611.86,0.00021917,2]
[329771438,1718659852002,-1085.89,0.00021917,2]
[329771439,1718659852011,-500.0,0.00021917,2]
[329771440,1718659852020,-500.0,0.00021917,2]
[329771441,1718659852029,-500.0,0.00021917,2]
[329771442,1718659852038,-936.49,0.00021917,2]
[329771443,1718659852047,-500.0,0.00021917,2]
[329771444,1718659852056,-500.0,0.00021917,2]
[329771445,1718659852065,-500.0,0.00021917,2]
[329771446,1718659852074,-500.0,0.00021917,2]
[329771447,1718659852083,-500.0,0.00021917,2]